bitfinex-derivatives/quotes_ETHF0:USTF0_20260120
["timestamp","ask_amount","ask_price","bid_price","bid_amount"]
[1768917190108,0.41478816,3085.4,3084.1,0.14677419]
[1768917190307,0.41478816,3085.3,3084.1,0.14677419]
[1768917190514,0.41478816,3085.2,3084.1,0.14677419]
[1768917190717,0.41478816,3085.1,3084.1,0.14677419]
[1768917190912,0.16218,3085.5,3084.1,0.14677419]
[1768917191106,1.41654733,3085.4,3084.1,0.14677419]
[1768917191414,0.41487325,3085.3,3084.1,0.14677419]
[1768917191711,0.41487325,3085.2,3084.1,0.14677419]
[1768917191912,0.41487325,3085.1,3084.1,0.14677419]
[1768917192102,0.16218,3085.5,3084.1,0.14677419]
[1768917192406,1.41680409,3085.4,3084.1,0.14677419]
[1768917192612,0.41504336,3085.3,3084.1,0.14677419]
[1768917192913,0.41504336,3085.2,3084.1,0.14677419]
[1768917194915,0.16221,3085.0,3083.7,0.14677419]
[1768917195113,0.41504336,3084.9,3083.7,0.14677419]
[1768917197615,0.00253082,3085.6,3083.7,0.14677419]
[1768917197816,0.16219,3085.4,3083.7,0.14677419]
[1768917198018,1.41610882,3085.3,3083.7,0.14677419]
[1768917198210,0.41288391,3085.2,3083.7,0.14677419]
[1768917201312,0.41288391,3085.2,3083.7,0.30904419]
[1768917201625,0.41288391,3085.1,3083.9,0.14677419]
[1768917201815,0.00253082,3085.6,3083.9,0.14677419]
[1768917202015,1.41638229,3085.5,3083.9,0.14677419]
[1768917202217,1.41638229,3085.4,3083.9,0.14677419]
[1768917202418,0.41297406,3085.3,3083.9,0.14677419]
[1768917202619,0.41297406,3085.2,3083.9,0.14677419]
[1768917202923,0.41297406,3085.1,3084.0,0.14677419]
[1768917203117,0.41297406,3085.1,3083.2,5.80023282]
[1768917203118,0.00253082,3085.6,3084.8,0.14677419]
[1768917203428,0.16215,3086.2,3084.8,0.14677419]
[1768917203628,1.41524188,3086.1,3084.8,0.14677419]
[1768917203829,0.41238611,3086.0,3084.8,0.14677419]
[1768917204027,0.41238611,3085.9,3084.8,0.14677419]
[1768917204226,0.00305296,3085.9,3084.8,0.14677419]
[1768917204629,2.28489343,3087.3,3085.2,0.13900124]
[1768917204820,1.4047463,3087.2,3085.3,0.13900124]
[1768917205024,1.4047463,3087.1,3085.3,0.13900124]
[1768917205232,1.4047463,3087.0,3085.3,0.13900124]
[1768917205429,0.4063568,3086.9,3085.3,0.13900124]
[1768917205628,0.4063568,3086.8,3085.3,0.13900124]
[1768917205832,0.00253821,3086.9,3085.3,0.14268099]
[1768917206029,0.4057095,3086.8,3085.3,0.14268099]
[1768917206324,0.40526688,3086.7,3085.3,0.14268099]
[1768917206531,0.00253821,3086.9,3085.3,0.14268099]
[1768917206731,0.40525262,3086.8,3085.3,0.14268099]
[1768917206926,0.40525262,3086.7,3085.3,0.14268099]
[1768917207131,0.00253821,3086.9,3085.3,0.14268099]
[1768917207326,0.40497248,3086.8,3085.3,0.14268099]
[1768917207523,0.00253821,3086.9,3085.3,0.14268099]
[1768917207731,0.4049502,3086.8,3085.3,0.14268099]
[1768917207930,0.00253821,3086.9,3085.3,0.14268099]
[1768917208130,0.40495099,3086.8,3085.3,0.14268099]
[1768917208333,0.00253821,3086.9,3085.3,0.14268099]
[1768917208527,0.40476209,3086.8,3085.3,0.14268099]
[1768917208832,0.00253821,3086.9,3085.3,0.14268099]
[1768917209029,0.40476233,3086.8,3085.3,0.14268099]
[1768917209227,0.00253821,3086.9,3085.3,0.14268099]
[1768917209728,0.40457245,3086.8,3085.3,0.14268099]
[1768917209928,0.00253821,3086.9,3085.3,0.14268099]
[1768917210128,0.16212,3086.7,3085.3,0.14268099]
[1768917212838,0.16212,3086.6,3085.3,0.14268099]
[1768917213942,0.00253821,3086.9,3085.3,0.14268099]
[1768917213943,0.16214,3086.4,3085.3,0.14268099]
[1768917214834,0.00253821,3086.9,3085.3,0.14268099]
[1768917215034,0.16215,3086.1,3085.3,0.00367975]
[1768917215739,0.16215,3086.0,3085.3,0.00367975]
[1768917215942,0.16217,3085.8,3084.9,0.13900124]
[1768917216935,0.16217,3085.8,3084.9,0.14227659]
[1768917217539,0.16217,3085.7,3084.9,0.14227659]
[1768917217744,0.16218,3085.6,3084.9,0.00327535]
[1768917221144,0.16218,3085.5,3084.9,0.00327535]
[1768917222338,1.23478017,3086.2,3084.1,0.13900124]
[1768917222541,0.16218,3085.5,3084.1,0.13900124]
[1768917223349,0.16218,3085.5,3084.1,0.14151418]
[1768917224551,3.244,3086.3,3084.1,0.14151418]
[1768917224852,0.16219,3085.4,3084.1,0.14151418]
[1768917225940,1.23478017,3086.0,3084.1,0.14151418]
[1768917226142,0.16219,3085.3,3084.1,0.14151418]
[1768917227243,0.16219,3085.3,3084.2,0.14648249]
[1768917232149,0.16222,3084.8,3084.1,0.00251294]
[1768917233861,0.16222,3084.8,3084.1,0.14163653]
[1768917234062,0.16219,3085.3,3084.1,0.14163653]
[1768917234572,1.23478017,3086.2,3084.1,0.14163653]
[1768917234573,0.1622,3085.2,3084.1,0.14163653]
[1768917234865,0.1622,3085.1,3084.1,0.14163653]
[1768917236662,1.23478017,3085.4,3084.1,0.00251294]
[1768917236857,0.16222,3084.8,3084.1,0.00251294]
[1768917238359,0.16222,3084.7,3084.1,0.00251294]
[1768917238564,0.1652476,3084.7,3084.1,0.00251294]
[1768917241166,1.23512347,3085.6,3084.1,0.14163653]
[1768917241367,0.16221,3085.0,3084.1,0.14163653]
[1768917242369,0.16568403,3085.0,3084.1,0.14163653]
[1768917244167,0.16222,3084.7,3084.1,0.00251294]
[1768917244670,0.16222,3084.7,3083.7,0.13912359]
[1768917245463,0.16222,3084.7,3083.7,0.1425151]
[1768917247063,0.16225,3084.2,3083.7,0.00339151]
[1768917247269,0.16225,3084.2,3083.3,0.13912359]
[1768917248172,1.23512347,3084.0,3083.3,0.00295842]
[1768917248675,1.23512347,3084.0,3082.8,0.13912359]
[1768917249567,1.39738347,3084.0,3082.8,0.14267686]
[1768917251373,0.16227,3083.9,3082.8,0.14267686]
[1768917254084,0.16227,3083.9,3082.9,0.13912359]
[1768917255986,0.16227,3083.8,3082.9,0.13912359]
[1768917256576,0.16228,3083.7,3082.9,0.13912359]
[1768917256776,1.23512347,3083.9,3082.9,0.13912359]
[1768917257595,0.16228,3083.6,3082.9,0.13912359]
[1768917260904,1.23512347,3084.0,3082.8,0.00355327]
[1768917261087,1.23512347,3083.0,3081.9,0.13912359]
[1768917261282,0.16232,3082.8,3081.4,0.13912359]
[1768917261879,1.23512347,3083.0,3081.4,0.13912359]
[1768917262088,1.23512347,3082.6,3081.4,0.14224773]
[1768917262288,1.23512347,3082.3,3081.4,0.00312414]
[1768917262789,0.16237,3082.0,3081.4,0.00312414]
[1768917262991,0.00243163,3083.0,3080.9,0.13912359]
[1768917263193,0.16237,3082.0,3080.9,0.13912359]
[1768917263392,0.16239,3081.6,3079.7,0.13966861]
[1768917263893,0.16239,3081.5,3079.7,0.1436881]
[1768917269491,0.1624,3081.3,3079.7,0.1436881]
[1768917270387,1.8222794,3082.5,3079.7,0.1436881]
[1768917270388,0.16242,3081.0,3079.7,0.1436881]
[1768917270586,0.16242,3080.9,3079.7,0.1436881]
[1768917270783,0.16243,3080.7,3079.7,0.1436881]
[1768917270992,0.16244,3080.6,3079.7,0.00401949]
[1768917271798,0.16244,3080.5,3079.3,0.13966861]
[1768917272096,0.16244,3080.5,3078.4,0.13966861]
[1768917272295,0.16244,3080.5,3078.4,3.38666861]
[1768917272490,0.16244,3080.5,3078.5,0.13966861]
[1768917272794,0.00403993,3080.7,3078.9,0.13966861]
[1768917273384,0.00403993,3080.7,3079.1,0.13966861]
[1768917273591,0.00403993,3080.7,3079.1,3.38766861]
[1768917273893,0.00403993,3080.7,3079.2,0.13966861]
[1768917274394,0.00403993,3080.7,3079.4,0.13966861]
[1768917274598,0.00403993,3080.7,3079.6,0.13966861]
[1768917277102,0.16244,3080.5,3079.6,0.13966861]
[1768917277306,0.16244,3080.5,3078.7,0.13966861]
[1768917278490,0.00403993,3080.7,3078.9,0.13966861]
[1768917278888,0.00403993,3080.7,3079.1,0.13966861]
[1768917283802,0.16244,3080.6,3079.1,0.13966861]
[1768917284108,0.00403993,3080.7,3079.1,0.13966861]
[1768917284306,0.16245,3080.4,3079.1,0.13966861]
[1768917290104,0.00403993,3080.7,3079.1,0.13966861]
[1768917290808,0.00403993,3080.7,3079.1,3.38866861]
[1768917291012,0.00403993,3080.7,3079.2,0.14656835]
[1768917291911,1e-08,3080.7,3079.4,0.14656835]
[1768917292512,1e-08,3080.7,3079.5,0.16249]
[1768917292814,1e-08,3080.7,3079.6,0.14656835]
[1768917293908,1e-08,3080.7,3079.7,0.14321227]
[1768917295106,1e-08,3080.7,3079.4,1.77771227]
[1768917295720,1e-08,3080.7,3079.5,5.221]
[1768917296110,1e-08,3080.7,3078.5,3.25230244]
[1768917296318,0.99485089,3080.6,3078.8,0.16253]
[1768917296516,0.16243001,3080.7,3078.8,0.16253]
[1768917296815,1.39845028,3080.6,3078.8,0.16253]
[1768917297011,0.16243001,3080.7,3078.9,0.14321227]
[1768917297206,1.39844988,3080.6,3078.9,0.14321227]
[1768917297506,0.99485624,3080.5,3078.9,0.14321227]
[1768917297701,0.16243001,3080.7,3078.9,0.14321227]
[1768917297907,1.39874224,3080.6,3078.9,0.14321227]
[1768917298109,1.39874224,3080.5,3078.9,0.14321227]
[1768917298416,0.29668379,3080.7,3078.9,0.14321227]
[1768917298610,1.39901089,3080.6,3078.9,0.14321227]
[1768917298808,1.39901089,3080.5,3078.9,0.14321227]
[1768917299009,0.29668379,3080.7,3078.9,0.14321227]
[1768917299209,1.39900539,3080.6,3078.9,0.14321227]
[1768917299411,1.39900539,3080.5,3078.9,0.14321227]
[1768917299610,0.29668379,3080.7,3078.9,0.14321227]
[1768917299811,1.39839154,3080.6,3078.9,0.14321227]
[1768917300013,1.39839154,3080.5,3078.9,0.14321227]
[1768917300220,0.16243001,3080.7,3078.9,0.14321227]
[1768917300421,1.39856743,3080.6,3078.9,0.14321227]
[1768917300623,0.16243001,3080.7,3078.9,0.14321227]
[1768917300920,1.39862006,3080.6,3078.9,0.14321227]
[1768917301121,0.9956147,3080.5,3078.9,0.14321227]
[1768917301307,0.16243001,3080.7,3078.9,0.14321227]
[1768917301619,1.39186292,3080.6,3078.9,0.14321227]
[1768917301918,0.16243001,3080.7,3078.9,0.14321227]
[1768917302111,1e-08,3080.7,3079.1,0.14321227]
[1768917302712,0.13425378,3080.5,3078.7,0.14321227]
[1768917302916,0.16248,3079.8,3078.5,0.00330244]
[1768917303710,0.16248,3079.8,3078.5,0.14651471]
[1768917304726,0.16248,3079.8,3078.5,0.00330244]
[1768917305025,0.16248,3079.8,3078.5,0.14651471]
[1768917305319,3.249,3080.5,3078.5,0.14651471]
[1768917305522,0.16246,3080.3,3078.5,0.14651471]
[1768917305825,1.37901839,3080.2,3078.5,0.14651471]
[1768917306015,1.37901839,3080.1,3078.5,0.14651471]
[1768917306321,0.16246,3080.3,3078.5,0.14651471]
[1768917306514,1.37902555,3080.2,3078.5,0.14651471]
[1768917306815,0.16246,3080.3,3078.5,0.14651471]
[1768917307021,0.39818254,3080.2,3078.5,0.14651471]
[1768917307213,0.16246,3080.3,3078.5,0.14651471]
[1768917307416,1e-08,3080.7,3078.8,0.14321227]
[1768917307620,0.3981955,3080.6,3079.0,0.14321227]
[1768917307816,1e-08,3080.7,3078.5,0.00330244]
[1768917307817,1e-08,3080.7,3079.5,0.14321227]
[1768917309618,1e-08,3080.7,3079.0,0.14321227]
[1768917310022,0.53235892,3080.6,3078.8,0.16253]
[1768917310224,0.13425378,3080.6,3078.7,3.25]
[1768917310425,0.16247,3080.0,3078.5,0.00330244]
[1768917310817,0.29672378,3080.0,3078.5,0.00330244]
[1768917311021,0.13425378,3079.9,3078.5,0.00330244]
[1768917311918,0.13425378,3079.6,3077.5,3.39221227]
[1768917313018,0.16249,3079.7,3077.6,0.14321227]
[1768917313418,0.16249,3079.7,3077.5,3.41475359]
[1768917313419,0.16249,3079.7,3077.8,0.14321227]
[1768917313722,0.13425378,3080.1,3078.1,0.14321227]
[1768917313923,0.16245,3080.4,3078.3,0.14321227]
[1768917314123,0.16245,3080.4,3078.4,0.14321227]
[1768917314425,0.13425378,3080.6,3078.5,0.14321227]
[1768917314621,1e-08,3080.7,3078.6,0.14321227]
[1768917314827,1e-08,3080.7,3078.7,0.14321227]
[1768917317728,0.29669378,3080.6,3078.7,0.14321227]
[1768917318625,0.16245,3080.4,3078.7,0.14321227]
[1768917319228,0.29671378,3080.3,3078.1,0.14321227]
[1768917319622,0.13425378,3080.2,3078.1,0.14321227]
[1768917320429,0.13425378,3080.0,3078.1,0.14321227]
[1768917321627,0.29672378,3080.0,3078.1,0.14321227]
[1768917322124,0.13425378,3080.0,3078.1,0.14321227]
[1768917322331,0.13425378,3079.8,3077.6,0.14321227]
[1768917322523,0.1625,3079.5,3077.6,0.14321227]
[1768917322831,3.25,3080.3,3077.8,0.14321227]
[1768917323031,0.16247,3080.0,3077.8,0.14321227]
[1768917323231,0.16248,3079.9,3077.8,0.14321227]
[1768917323930,0.16248,3079.8,3077.8,0.14321227]
[1768917326732,0.16249,3079.7,3077.8,0.14321227]
[1768917327631,0.16249,3079.6,3077.8,0.14321227]
[1768917328935,0.16249,3079.6,3077.9,0.14409235]
[1768917329738,0.16249,3079.6,3078.0,0.14409235]
[1768917330237,0.29671378,3080.2,3078.1,0.14409235]
[1768917330543,0.56064324,3080.1,3078.1,0.14409235]
[1768917330731,6.321,3080.4,3078.1,0.14409235]
[1768917330732,0.141678,3079.7,3078.1,0.14409235]
[1768917330935,0.1625,3079.5,3077.7,0.14409235]
[1768917331654,0.1625,3079.5,3077.8,0.14409235]
[1768917334850,0.1625,3079.5,3077.9,0.14409235]
[1768917337153,0.1625,3079.4,3077.9,0.14409235]
[1768917338763,0.1625,3079.4,3078.0,0.14409235]
[1768917341861,0.16247,3080.0,3078.2,0.14409235]
[1768917342168,0.39883782,3079.9,3078.2,0.14409235]
[1768917342366,0.39884849,3079.8,3078.2,0.14409235]
[1768917342558,0.16247,3080.0,3078.2,0.14409235]
[1768917342759,0.39886872,3079.9,3078.2,0.14409235]
[1768917342959,0.16247,3080.0,3078.2,0.14409235]
[1768917343159,0.39758717,3079.9,3078.2,0.14409235]
[1768917343359,0.16247,3080.0,3078.2,0.14409235]
[1768917343566,0.39761564,3079.9,3078.2,0.14409235]
[1768917343761,0.16247,3080.0,3078.2,0.14409235]
[1768917343962,0.39761432,3079.9,3078.2,0.14409235]
[1768917344161,0.16247,3080.0,3078.2,0.14409235]
[1768917345161,0.16247,3080.0,3078.3,0.14485854]
[1768917345363,0.16245,3080.4,3078.4,0.14485854]
[1768917345565,0.39779717,3080.3,3078.4,0.14485854]
[1768917345765,0.39779717,3080.2,3078.4,0.14485854]
[1768917345960,0.16245,3080.4,3078.4,0.14485854]
[1768917346161,0.16245,3080.4,3078.7,0.14485854]
[1768917346568,0.13809947,3080.3,3078.7,0.14485854]
[1768917347368,0.16245,3080.4,3078.7,0.14485854]
[1768917347960,0.13809948,3080.7,3078.9,0.14485854]
[1768917348172,0.13809948,3080.7,3079.0,0.14485854]
[1768917349576,0.16244,3080.6,3079.0,0.14485854]
[1768917350073,0.16244,3080.5,3079.0,0.14485854]
[1768917352870,0.13809948,3080.7,3079.0,0.14485854]
[1768917352871,1e-08,3080.7,3079.1,0.14485854]
[1768917355072,0.16243001,3080.7,3079.1,0.14485854]
[1768917356867,0.16244,3080.6,3079.1,0.14485854]
[1768917357073,0.30731848,3080.4,3078.7,0.14102875]
[1768917357280,0.14486848,3080.3,3078.7,0.14102875]
[1768917357582,0.16247,3080.1,3078.6,5.217]
[1768917358883,0.30733848,3080.1,3078.4,0.16255]
[1768917359179,0.14486848,3080.1,3078.3,0.14102875]
[1768917359782,0.16248,3079.9,3078.3,0.14102875]
[1768917360084,0.30734848,3079.9,3078.3,0.14102875]
[1768917360786,0.30734848,3079.8,3078.3,0.14102875]
[1768917361181,0.30736848,3079.5,3077.8,5.51961875]
[1768917362078,0.30736848,3079.5,3077.8,0.30361875]
[1768917362475,0.14486848,3079.3,3077.5,0.00315359]
[1768917362778,0.16253,3078.9,3077.5,0.00315359]
[1768917363374,0.30739848,3078.9,3077.5,0.00315359]
[1768917364583,0.14486848,3078.8,3076.6,0.14102875]
[1768917365377,0.14486848,3078.8,3076.8,0.14102875]
[1768917365574,0.14486848,3078.8,3076.8,0.14365457]
[1768917365975,1.82523096,3079.3,3076.8,0.14365457]
[1768917365976,0.14486848,3078.6,3076.8,0.14365457]
[1768917366182,0.14486848,3078.5,3076.8,0.14365457]
[1768917366378,0.14876084,3078.5,3076.8,0.14365457]
[1768917366589,0.00389236,3078.5,3076.8,0.14365457]
[1768917366886,0.00389236,3078.5,3077.0,0.14102875]
[1768917367084,0.00389236,3078.5,3077.2,0.16262]
[1768917367384,0.14486848,3079.5,3077.6,0.14102875]
[1768917367785,0.14486848,3079.5,3077.7,0.14102875]
[1768917368292,0.14771989,3079.5,3077.7,0.14102875]
[1768917369086,0.1625,3079.4,3077.7,0.14102875]
[1768917369590,0.14486848,3079.3,3077.7,0.14102875]
[1768917369786,0.14486848,3079.3,3077.2,0.14102875]
[1768917370089,0.14486848,3079.2,3077.2,0.14102875]
[1768917370489,0.14486848,3079.2,3076.9,0.16263]
[1768917370986,0.14486848,3079.2,3077.0,0.14102875]
[1768917371289,0.14486848,3079.2,3077.1,0.14102875]
[1768917371490,0.30737848,3079.2,3077.1,0.14102875]
[1768917372084,0.30737848,3079.2,3077.2,0.14102875]
[1768917372496,0.16251,3079.2,3077.4,0.14102875]
[1768917373193,0.00285141,3079.5,3077.7,0.14102875]
[1768917373383,0.16535141,3079.5,3077.7,0.14102875]
[1768917373897,0.14771989,3079.5,3077.7,0.14102875]
[1768917374186,0.16251,3079.3,3077.7,0.14102875]
[1768917374982,0.16252,3079.1,3077.2,0.14102875]
[1768917375178,0.16252,3079.1,3077.3,0.14102875]
[1768917375482,0.16252,3079.1,3077.4,0.14102875]
[1768917376694,0.00285141,3079.5,3077.6,0.14102875]
[1768917377495,0.16535141,3079.5,3077.7,0.14102875]
[1768917378292,0.31021989,3079.5,3077.7,0.14102875]
[1768917378598,0.31021989,3079.5,3077.7,0.30361875]
[1768917381294,0.31021989,3079.5,3077.8,0.14102875]
[1768917381492,0.14486848,3079.4,3077.8,0.14102875]
[1768917383300,0.16535141,3079.5,3077.8,0.14102875]
[1768917384705,0.16535141,3079.5,3077.9,0.14498969]
[1768917384894,0.00285141,3079.5,3078.0,0.14498969]
[1768917385294,0.00285141,3079.5,3078.0,0.30755969]
[1768917385493,0.00285141,3079.5,3078.1,0.30755969]
[1768917385693,0.00285141,3079.5,3078.2,0.14498969]
[1768917385900,0.00285141,3079.5,3078.2,0.30755969]
[1768917386094,0.00285141,3079.5,3078.3,0.14498969]
[1768917386995,0.00285141,3079.5,3078.3,0.30754969]
[1768917387189,0.00285141,3079.5,3077.9,1.964]
[1768917387190,0.30663228,3080.7,3078.6,0.30752969]
[1768917387396,0.14419228,3080.5,3078.7,0.14498969]
[1768917387695,0.16244,3080.7,3079.1,0.14498969]
[1768917388202,0.16651867,3080.7,3079.1,0.14736663]
[1768917388405,0.30663228,3080.6,3079.1,0.00237694]
[1768917388996,0.30663228,3080.5,3079.1,0.00237694]
[1768917389601,0.16244,3080.5,3079.1,0.00237694]
[1768917389796,0.16244,3080.5,3079.1,0.14736663]
[1768917391205,0.16244,3080.5,3079.1,0.00237694]
[1768917392499,0.30664228,3080.4,3079.1,0.00237694]
[1768917393301,0.16245,3080.4,3079.1,0.14736663]
[1768917393698,0.00407867,3080.7,3079.1,0.14736663]
[1768917398806,0.14419228,3080.6,3079.1,0.14736663]
[1768917399113,0.30664228,3080.4,3079.1,0.00237694]
[1768917400612,0.30666228,3080.1,3079.1,0.00237694]
[1768917400808,0.14419228,3080.1,3079.1,0.00237694]
[1768917401003,0.14419228,3080.0,3078.2,3.39498969]
[1768917401213,0.14419228,3080.0,3078.2,0.14498969]
[1768917401608,0.30667228,3079.9,3078.2,0.14498969]
[1768917401807,0.14419228,3079.7,3078.2,0.14498969]
[1768917402012,0.14419228,3079.6,3078.2,0.00301249]
[1768917403319,0.1376995,3079.4,3078.2,0.00301249]
[1768917407432,0.1625,3079.5,3078.2,0.00301249]
[1768917408533,0.1376995,3079.4,3078.2,0.00301249]
[1768917409235,0.1625,3079.5,3078.2,0.00301249]
[1768917409634,0.1376995,3079.8,3078.2,0.00301249]
[1768917410135,0.1376995,3079.8,3078.2,0.13852794]
[1768917411226,0.39451595,3079.7,3078.2,0.13852794]
[1768917411423,0.1376995,3079.8,3078.2,0.13852794]
[1768917411624,0.53226324,3079.7,3078.2,0.00301249]
[1768917411828,0.1376995,3079.6,3078.2,0.00301249]
[1768917412229,0.16248,3079.8,3078.2,0.13852794]
[1768917413832,0.29941639,3079.8,3078.2,0.13852794]
[1768917415738,0.13693639,3079.7,3078.2,0.13852794]
[1768917416339,0.29942639,3079.7,3078.2,0.13852794]
[1768917416840,0.13693639,3079.6,3078.2,0.00301249]
[1768917417741,0.16249,3079.7,3078.2,0.1407947]
[1768917418040,0.29942639,3079.7,3078.2,0.00301249]
[1768917419337,0.29942639,3079.7,3078.2,0.1407947]
[1768917419542,0.16249,3079.7,3078.2,0.1407947]
[1768917421046,1.23932983,3079.6,3078.2,0.1407947]
[1768917422944,0.16249,3079.7,3078.2,0.1407947]
[1768917427348,6.48346,3080.3,3078.4,0.13778221]
[1768917427551,0.39285893,3080.2,3078.4,0.13778221]
[1768917427845,0.00407867,3080.7,3078.6,0.13778221]
[1768917428054,1.37907956,3080.6,3078.7,0.13778221]
[1768917428247,0.3928403,3080.5,3078.8,0.13778221]
[1768917428445,0.3928403,3080.4,3078.8,0.13778221]
[1768917428756,0.00407867,3080.7,3078.8,0.13778221]
[1768917428949,0.39027871,3080.6,3078.8,0.13778221]
[1768917429146,0.39027871,3080.5,3078.8,0.13778221]
[1768917429349,0.00407867,3080.7,3078.8,0.13778221]
[1768917429549,0.39025835,3080.6,3078.8,0.13778221]
[1768917429751,0.00407867,3080.7,3078.8,1.37709131]
[1768917429949,0.39027607,3080.6,3078.9,0.13778221]
[1768917430151,0.00407867,3080.7,3078.9,0.13778221]
[1768917430351,0.00407867,3080.7,3079.0,0.13778221]
[1768917431454,0.00407867,3080.7,3079.0,0.30030221]
[1768917431654,0.00407867,3080.7,3079.1,0.13778221]
[1768917439057,0.00407867,3080.7,3079.1,0.30030221]
[1768917439255,0.00407867,3080.7,3079.2,0.13778221]
[1768917442960,0.00407867,3080.7,3079.3,0.13778221]
[1768917447361,0.00407867,3080.7,3079.4,0.14319304]
[1768917447561,0.00407867,3080.7,3079.5,0.14319304]
[1768917447961,0.00407867,3080.7,3079.5,0.30569304]
[1768917448163,0.56586415,3081.7,3079.6,0.14319304]
[1768917448364,0.14746342,3081.4,3079.6,0.14319304]
[1768917449254,0.15158847,3081.4,3079.6,0.14319304]
[1768917449452,0.16652505,3081.4,3079.6,0.14319304]
[1768917449957,0.31398847,3081.4,3079.6,0.14319304]
[1768917450866,0.31398847,3081.4,3079.7,0.14319304]
[1768917450867,0.16652505,3081.4,3079.7,0.14319304]
[1768917452861,0.00412505,3081.4,3079.8,0.14319304]
[1768917453069,0.00412505,3081.4,3079.9,0.14319304]
[1768917456570,0.00412505,3081.4,3079.9,0.30567304]
[1768917456964,0.00412505,3081.4,3080.0,0.30566304]
[1768917457172,0.00412505,3081.4,3080.2,0.14319304]
[1768917461271,0.00412505,3081.4,3079.5,0.1625]
[1768917461472,0.00412505,3081.4,3079.7,0.14319304]
[1768917462371,0.00412505,3081.4,3079.7,0.30568304]
[1768917462576,0.00412505,3081.4,3079.8,0.14319304]
[1768917468283,0.13756353,3081.4,3079.8,0.14319304]
[1768917469584,0.29996353,3081.4,3079.8,0.14319304]
[1768917470086,0.13343848,3081.3,3079.8,0.14319304]
[1768917470873,0.13343848,3081.3,3079.7,0.16249]
[1768917471085,0.16652505,3081.4,3079.7,0.16249]
[1768917475290,0.39138309,3081.3,3079.7,0.16249]
[1768917475483,0.16652505,3081.4,3079.7,0.16249]
[1768917475683,0.39138199,3081.3,3079.7,0.16249]
[1768917475881,0.16652505,3081.4,3079.7,0.16249]
[1768917476080,0.39138318,3081.3,3079.7,0.16249]
[1768917476287,0.16652505,3081.4,3079.7,0.16249]
[1768917476488,0.39139837,3081.3,3079.7,0.16249]
[1768917476689,0.16652505,3081.4,3079.7,0.16249]
[1768917476985,0.39139647,3081.3,3079.7,0.16249]
[1768917477192,0.16652505,3081.4,3079.7,0.16249]
[1768917477392,0.39139786,3081.3,3079.7,0.16249]
[1768917477687,0.16652505,3081.4,3079.7,0.16249]
[1768917477895,0.39147503,3081.3,3079.7,0.16249]
[1768917478192,0.16652505,3081.4,3079.7,0.16249]
[1768917478393,0.39152682,3081.3,3079.7,0.16249]
[1768917478589,0.16652505,3081.4,3079.7,0.16249]
[1768917478786,0.39154945,3081.3,3079.7,0.16249]
[1768917478990,0.16652505,3081.4,3079.7,0.16249]
[1768917479192,0.39158802,3081.3,3079.7,0.16249]
[1768917479484,0.16652505,3081.4,3079.7,0.16249]
[1768917479691,0.39162171,3081.3,3079.7,0.16249]
[1768917479880,0.16652505,3081.4,3079.7,0.16249]
[1768917480081,0.39162194,3081.3,3079.7,0.16249]
[1768917480289,0.16652505,3081.4,3079.7,0.16249]
[1768917480495,0.39167181,3081.3,3079.7,0.16249]
[1768917480691,0.16652505,3081.4,3079.7,0.16249]
[1768917480895,0.39167153,3081.3,3079.7,0.16249]
[1768917481192,0.16652505,3081.4,3079.7,0.16249]
[1768917481392,0.39169314,3081.3,3079.7,0.16249]
[1768917481593,0.16652505,3081.4,3079.7,0.16249]
[1768917481794,0.3917288,3081.3,3079.7,0.16249]
[1768917481987,0.16652505,3081.4,3079.7,0.16249]
[1768917482194,0.39174926,3081.3,3079.7,0.16249]
[1768917482383,0.16652505,3081.4,3079.7,0.16249]
[1768917482586,0.00412505,3081.4,3079.3,5.203]
[1768917482784,0.00412505,3081.4,3080.0,0.16247]
[1768917483296,0.00412505,3081.4,3080.1,0.16246]
[1768917484298,0.00412505,3081.4,3079.6,5.80023282]
[1768917484489,0.00412505,3081.4,3079.5,5.96272282]
[1768917484689,0.39128441,3081.3,3079.5,7.91772282]
[1768917484889,0.00412505,3081.4,3079.5,7.91772282]
[1768917485096,0.3914041,3081.3,3079.5,7.91772282]
[1768917485292,0.00412505,3081.4,3079.5,0.16249]
[1768917485499,0.39154848,3081.3,3079.5,0.16249]
[1768917485698,0.39154848,3081.2,3079.5,0.16249]
[1768917486200,1.23821343,3081.0,3079.5,0.16249]
[1768917491409,1.23821343,3081.0,3079.7,1.23821343]
[1768917491610,1.40061343,3081.3,3079.7,1.23821343]
[1768917491811,0.3917874,3081.2,3079.7,1.23821343]
[1768917492006,1.40061343,3081.3,3079.7,1.23821343]
[1768917492209,0.39208066,3081.2,3079.7,1.23821343]
[1768917492412,1.40061343,3081.3,3079.7,1.23821343]
[1768917492609,0.39194599,3081.2,3079.7,1.23821343]
[1768917492906,1.40061343,3081.3,3079.7,1.23821343]
[1768917493111,0.39191988,3081.2,3079.7,1.23821343]
[1768917493313,1.40061343,3081.3,3079.7,1.23821343]
[1768917493610,0.39195611,3081.2,3079.7,1.23821343]
[1768917493913,1.40061343,3081.3,3079.7,1.23821343]
[1768917494110,0.39191473,3081.2,3079.7,1.23821343]
[1768917494409,1.23821343,3081.3,3079.7,1.23821343]
[1768917494711,0.39186796,3081.2,3079.7,1.23821343]
[1768917494912,1.23821343,3081.3,3079.7,1.23821343]
[1768917495115,0.39186488,3081.2,3079.7,1.23821343]
[1768917495414,1.23821343,3081.3,3079.7,1.23821343]
[1768917495614,0.39178875,3081.2,3079.7,1.23821343]
[1768917495804,1.23821343,3081.3,3079.7,1.23821343]
[1768917496007,0.39178539,3081.2,3079.7,1.23821343]
[1768917496213,1.23821343,3081.3,3079.7,1.23821343]
[1768917496409,0.39180255,3081.2,3079.7,1.23821343]
[1768917496711,1.23821343,3081.3,3079.7,1.23821343]
[1768917496912,0.39181424,3081.2,3079.7,1.23821343]
[1768917497215,1.23821343,3081.3,3079.7,1.23821343]
[1768917497413,0.39184959,3081.2,3079.7,1.40070343]
[1768917497614,1.23821343,3081.3,3079.7,1.40070343]
[1768917497820,0.3918502,3081.2,3079.7,1.40070343]
[1768917498115,1.23821343,3081.3,3079.7,1.40070343]
[1768917498302,0.3918555,3081.2,3079.7,1.40070343]
[1768917498504,1.23821343,3081.3,3079.8,1.956]
[1768917498717,0.39184954,3081.2,3079.8,1.956]
[1768917498910,0.00412505,3081.4,3080.0,1.23821343]
[1768917499110,0.39184875,3081.3,3080.3,1.23821343]
[1768917499314,0.00412505,3081.4,3080.3,1.23821343]
[1768917507124,0.00412505,3081.4,3080.6,1.23821343]
[1768917507323,0.00412505,3081.4,3080.6,1.24076644]
[1768917508219,0.00412505,3081.4,3080.6,0.00255301]
[1768917510917,1.23821343,3081.3,3079.7,3.35470343]
[1768917511917,1.23821343,3081.3,3079.7,3.35891595]
[1768917513320,1.23821343,3081.3,3080.0,1.23821343]
[1768917513722,0.00412505,3081.4,3080.0,1.23821343]
[1768917513920,0.00412505,3081.4,3080.3,1.23821343]